Workbook

Sheet ОФО-2025 по МБДОУ №289
C1: Расчет объема финансового обеспечения на 2025 год
C2: МБДОУ "Детский сад № 289 комбинированного вида" Вахитовского района г.Казани
A5: № стр. | C5: Доп.ЭК | D5: Ассигнования 2024 года (счет ЛАГ,ЛБГ) КЦСР 0210125370, 0210342000, 026049990;ДКР 302,303,304,305,308,340,347,349,261,288); кроме ДФК 13580,13581,62845 | H5: Расчетная потребность на 2025 год | I5: Смета учреждения на выполнение муниц. задания (счет ЛАГ, ЛБГ), всего: | J5: в том числе | AC5: Контроль распред.ОФО
J6: субвенция РТ | K6: субсидия РТ | L6: бюджета города | M6: род.платы | N6: Выполнение муниципального задания (ЛАГ, ЛБГ)
N7: на выполнение муниципального задания, в пределах норматива (ДКР 302, 303, 304) | W7: доведение до уровня утвержденной тарификации (бюджет) | X7: в том числе | Z7: доведение до уровня утвержденной тарификации (род.плата) | AA7: Сверх-нормативные расходы (счет ЛАГ, ЛБГ) | AB7: Охрана учреждений
N8: ВСЕГО в пределах норматива ОФО: | O8: в том числе: | X8: субсидия РТ ДФК 06000 | Y8: бюджет города ДФК 00000
D9: Утвержд. план 2024 | F9: Уточн. план 2024
O10: итого НФЗ | P10: в том числе | R10: итого НСВ: | S10: в том числе | V10: НСИ:
P11: ДФК 00000 | Q11: ДФК 13597 | S11: субсидия РТ ДФК 06000 | T11: бюджет города ДФК 00000 | U11: род.плата ДФК 00000
B12: КЦСР | J12: 0210125370 | K12: 0210342000 | L12: 0210342000 | M12: 0210342000 | O12: 0210125370 | S12: 0210342000 | T12: 0210342000 | U12: 0210342000 | V12: 0210342000 | W12: 0210342000 | X12: 0210342000 | Y12: 0210342000 | Z12: 0210342000 | AA12: 0210342000 | AB12: 0260499900
B13: ДКР | O13: 302 | R13: 303 | V13: 304 | W13: 305 | Z13: 305 | AA13: 308 | AB13: 308
B14: 1 | C14: 2 | D14: 3 | E14: 3_1 | F14: 4 | G14: 4_1 | H14: 5 | I14: 6=7+8+9+10 | J14: 7=11 | K14: 8=13_1+15_1 | L14: 9=13_2+14+15_2+17 | M14: 10=13_3+16 | N14: 11=12+13+14 | O14: 12=12_1+12_2 | P14: 12_1 | Q14: 12_2 | R14: 13=13_1+13_2+13_3 | S14: 13_1 | T14: 13_2 | U14: 13_3 | V14: 14 | W14: 15=15_1+15_2 | X14: 15_1 | Y14: 15_2 | Z14: 16 | AA14: 17=5-11-19 | AC14: 5-6=0
A15: 1 | B15: Нормативный ОФО ("Барс.МБП"), всего: | D15: х | E15: x | F15: х | G15: x | H15: х | I15: х | J15: х | K15: х | L15: х | M15: 3,483,844.76 | N15: 28,053,405.16 | O15: 10,575,968.00 | P15: х | Q15: х | R15: 15,231,180.98 | S15: х | T15: х | U15: х | V15: 2,246,256.18 | W15: х | X15: х | Y15: х | Z15: х | AA15: х | AB15: х | AC15: х
A16: 2 | B16: в т.ч. норматив по питанию | D16: х | E16: - | F16: х | G16: - | H16: х | I16: х | J16: х | K16: х | L16: х | M16: х | N16: х | O16: х | P16: - | Q16: - | R16: 3,719,193.54 | S16: х | T16: х | U16: х | V16: х | W16: х | X16: х | Y16: х | Z16: х | AA16: х | AB16: х | AC16: х
A17: 3 | B17: КОНТРОЛЬ по нормативу | D17: х | E17: x | F17: х | G17: x | H17: х | I17: х | J17: х | K17: х | L17: х | M17: - | N17: - | O17: - | P17: х | Q17: х | R17: - | S17: х | T17: х | U17: х | V17: - | W17: х | X17: х | Y17: х | Z17: х | AA17: х | AB17: х | AC17: х
A18: 4 | B18: в т.ч. по нормативу питания | D18: х | E18: x | F18: х | G18: x | H18: х | I18: х | J18: х | K18: х | L18: х | M18: х | N18: х | O18: х | P18: х | Q18: х | R18: - | S18: х | T18: х | U18: х | V18: х | W18: х | X18: х | Y18: х | Z18: х | AA18: х | AB18: х | AC18: х
A19: 5 | B19: ВСЕГО в смете учреждения: | D19: 36,552,931.45 | E19: x | F19: 36,788,607.30 | G19: x | H19: 40,580,679.26 | I19: 40,580,679.26 | J19: 10,575,968.00 | K19: 7,775,095.81 | L19: 18,745,770.69 | M19: 3,483,844.76 | N19: 28,053,405.16 | O19: 10,575,968.00 | P19: 9,937,409.00 | Q19: 638,559.00 | R19: 15,231,180.98 | S19: 4,613,373.98 | T19: 7,133,962.24 | U19: 3,483,844.76 | V19: 2,246,256.18 | W19: 8,362,568.89 | X19: 3,161,721.83 | Y19: 5,200,847.06 | Z19: - | AA19: 3,551,505.21 | AB19: 613,200.00 | AC19: -
A20: 6 | B20: в т.ч. Зарплата с начислениями | D20: 26929179.50 | E20: x | F20: 27,811,013.43 | G20: x | H20: 30,095,221.98 | I20: 30,095,221.98 | J20: 10,575,968.00 | K20: 7,775,095.81 | L20: 11,560,485.49 | M20: 183,672.68 | N20: 21,732,653.09 | O20: 10,575,968.00 | P20: 9,937,409.00 | Q20: 638,559.00 | R20: 11,156,685.09 | S20: 4,613,373.98 | T20: 6,359,638.43 | U20: 183,672.68 | V20: х | W20: 8,362,568.89 | X20: 3,161,721.83 | Y20: 5,200,847.06 | Z20: - | AA20: х | AB20: х | AC20: -
A21: 7 | B21: прочие расходы (без 211, 213, 223, 225036, 226003,226050, 310, 291001, 291004, 291014, 291025) | D21: 1,497,729.75 | E21: x | F21: 2,347,058.37 | G21: x | H21: 889,585.63 | I21: 889,585.63 | J21: - | K21: х | L21: -2,410,586.45 | M21: 3,300,172.08 | N21: 4,377,632.77 | O21: - | P21: - | Q21: х | R21: 4,074,495.89 | S21: х | T21: 774,323.81 | U21: 3,300,172.08 | V21: 303,136.88 | W21: х | X21: х | Y21: х | Z21: х | AA21: -3,488,047.14 | AB21: х | AC21: -
A22: 8 | B22: Раздел 1. ПОЛНОМОЧИЯ РТ | D22: 12,811,324.19 | E22: x | F22: 12,706,860.44 | G22: x | H22: 13,737,689.83 | I22: 13,737,689.83 | J22: 10,575,968.00 | K22: 3,161,721.83 | L22: - | M22: - | N22: 10,575,968.00 | O22: 10,575,968.00 | P22: 9,937,409.00 | Q22: 638,559.00 | R22: - | S22: - | T22: - | U22: - | V22: х | W22: 3,161,721.83 | X22: 3,161,721.83 | Y22: - | Z22: - | AA22: - | AB22: х | AC22: -
A23: 9 | B23: 211 "Заработная плата" педагогического персонала | C23: П211004 | D23: 9,839,726.72 | E23: x | F23: 9,759,493.42 | G23: x | H23: 10,551,221.07 | I23: 10,551,221.07 | J23: 8,122,863.28 | K23: 2,428,357.79 | L23: - | M23: - | N23: 8,122,863.28 | O23: 8,122,863.28 | P23: 7,632,418.58 | Q23: 490,444.70 | R23: - | S23: - | T23: - | U23: - | V23: х | W23: 2,428,357.79 | X23: 2,428,357.79 | Y23: - | Z23: - | AA23: х | AB23: х | AC23: -
A24: 10 | B24: 213 "Начисления на оплату труда" педагогического персонала | C24: П213004 | D24: 2,971,597.47 | E24: x | F24: 2,947,367.02 | G24: x | H24: 3,186,468.76 | I24: 3,186,468.76 | J24: 2,453,104.72 | K24: 733,364.04 | L24: - | M24: - | N24: 2,453,104.72 | O24: 2,453,104.72 | P24: 2,304,990.42 | Q24: 148,114.30 | R24: - | S24: - | T24: - | U24: - | V24: х | W24: 733,364.04 | X24: 733,364.04 | Y24: - | Z24: - | AA24: х | AB24: х | AC24: -
A25: 11 | B25: 346 "Увеличение стоимости прочих оборотных запасов (материалов)" | D25: - | E25: x | F25: - | G25: x | H25: - | I25: - | J25: - | K25: х | L25: - | M25: х | N25: - | O25: - | P25: - | Q25: х | R25: х | S25: х | T25: х | U25: х | V25: х | W25: х | X25: х | Y25: х | Z25: х | AA25: - | AB25: х | AC25: -
A26: 12 | B26: Закупка материалов, используемых в процессе обучения | C26: П346004 | D26: - | E26: x | F26: - | G26: x | H26: - | I26: - | J26: - | K26: х | L26: - | M26: х | N26: - | O26: - | P26: - | Q26: х | R26: х | S26: х | T26: х | U26: х | V26: х | W26: х | X26: х | Y26: х | Z26: х | AA26: - | AB26: х | AC26: -
A27: 13 | B27: Раздел 2. ПОЛНОМОЧИЯ города | D27: 23,741,607.26 | E27: x | F27: 24,081,746.86 | G27: x | H27: 26,842,989.43 | I27: 26,842,989.43 | J27: - | K27: 4,613,373.98 | L27: 18,745,770.69 | M27: 3,483,844.76 | N27: 17,477,437.16 | O27: - | P27: - | Q27: х | R27: 15,231,180.98 | S27: 4,613,373.98 | T27: 7,133,962.24 | U27: 3,483,844.76 | V27: 2,246,256.18 | W27: 5,200,847.06 | X27: - | Y27: 5,200,847.06 | Z27: - | AA27: 3,551,505.21 | AB27: 613,200.00 | AC27: -
A28: 14 | B28: Раздел 2.1 ФОТ | D28: 14,117,855.31 | E28: x | F28: 15,104,152.99 | G28: x | H28: 16,357,532.15 | I28: 16,357,532.15 | J28: - | K28: 4,613,373.98 | L28: 11,560,485.49 | M28: 183,672.68 | N28: 11,156,685.09 | O28: - | P28: - | Q28: х | R28: 11,156,685.09 | S28: 4,613,373.98 | T28: 6,359,638.43 | U28: 183,672.68 | V28: х | W28: 5,200,847.06 | X28: - | Y28: 5,200,847.06 | Z28: - | AA28: х | AB28: х | AC28: -
A29: 15 | B29: 211 "Заработная плата" вспомогательного персонала | C29: П211005 | D29: 10,843,206.84 | E29: x | F29: 11,582,175.87 | G29: x | H29: 12,563,388.75 | I29: 12,563,388.75 | J29: - | K29: 3,543,297.98 | L29: 8,879,021.13 | M29: 141,069.64 | N29: 8,568,882.55 | O29: - | P29: - | Q29: х | R29: 8,568,882.55 | S29: 3,543,297.98 | T29: 4,884,514.93 | U29: 141,069.64 | V29: х | W29: 3,994,506.20 | X29: - | Y29: 3,994,506.20 | Z29: - | AA29: х | AB29: х | AC29: -
A30: 16 | B30: 213 "Начисления на оплату труда" вспомогательного персонала | C30: П213005 | D30: 3,274,648.47 | E30: x | F30: 3,521,977.12 | G30: x | H30: 3,794,143.40 | I30: 3,794,143.40 | J30: - | K30: 1,070,076.00 | L30: 2,681,464.36 | M30: 42,603.04 | N30: 2,587,802.54 | O30: - | P30: - | Q30: х | R30: 2,587,802.54 | S30: 1,070,076.00 | T30: 1,475,123.50 | U30: 42,603.04 | V30: х | W30: 1,206,340.86 | X30: - | Y30: 1,206,340.86 | Z30: - | AA30: х | AB30: х | AC30: -
A31: 17 | B31: Раздел 2.2 Коммунальные услуги | D31: 3,212,565.70 | E31: x | F31: 1,748,026.70 | G31: x | H31: 4,787,358.19 | I31: 4,787,358.19 | J31: х | K31: х | L31: 4,787,358.19 | M31: х | N31: 1,665,743.40 | O31: х | P31: х | Q31: х | R31: х | S31: х | T31: х | U31: х | V31: 1,665,743.40 | W31: х | X31: х | Y31: х | Z31: х | AA31: 3,121,614.79 | AB31: х | AC31: -
A32: 18 | B32: 223 "Коммунальные услуги" | D32: 3,212,565.70 | E32: x | F32: 1,748,026.70 | G32: x | H32: 4,787,358.19 | I32: 4,787,358.19 | J32: х | K32: х | L32: 4,787,358.19 | M32: х | N32: 1,665,743.40 | O32: х | P32: х | Q32: х | R32: х | S32: х | T32: х | U32: х | V32: 1,665,743.40 | W32: х | X32: х | Y32: х | Z32: х | AA32: 3,121,614.79 | AB32: х | AC32: -
A33: 19 | B33: Электроснабжение | C33: П223001 | D33: 572,107.00 | E33: x | F33: 572,107.00 | G33: x | H33: 631,513.00 | I33: 631,513.00 | J33: х | K33: х | L33: 631,513.00 | M33: х | N33: 568,362.00 | O33: х | P33: х | Q33: х | R33: х | S33: х | T33: х | U33: х | V33: 568,362.00 | W33: х | X33: х | Y33: х | Z33: х | AA33: 63,151.00 | AB33: х | AC33: -
A34: 20 | B34: Теплоснабжение | C34: П223002 | D34: 923,011.00 | E34: x | F34: 948,492.00 | G34: x | H34: 982,450.00 | I34: 982,450.00 | J34: х | K34: х | L34: 982,450.00 | M34: х | N34: 884,205.00 | O34: х | P34: х | Q34: х | R34: х | S34: х | T34: х | U34: х | V34: 884,205.00 | W34: х | X34: х | Y34: х | Z34: х | AA34: 98,245.00 | AB34: х | AC34: -
A35: 21 | B35: Газоснабжение | C35: П223003 | D35: - | E35: x | F35: - | G35: x | H35: - | I35: - | J35: х | K35: х | L35: - | M35: х | N35: - | O35: х | P35: х | Q35: х | R35: х | S35: х | T35: х | U35: х | V35: - | W35: х | X35: х | Y35: х | Z35: х | AA35: - | AB35: х | AC35: -
A36: 22 | B36: Водоснабжение | C36: П223004 | D36: 168,933.00 | E36: x | F36: 168,933.00 | G36: x | H36: 177,525.00 | I36: 177,525.00 | J36: х | K36: х | L36: 177,525.00 | M36: х | N36: 159,773.00 | O36: х | P36: х | Q36: х | R36: х | S36: х | T36: х | U36: х | V36: 159,773.00 | W36: х | X36: х | Y36: х | Z36: х | AA36: 17,752.00 | AB36: х | AC36: -
A37: 23 | B37: Прочие коммунальные услуги (ассигнования) | C37: П223099 | D37: 1,490,020.00 | E37: x | F37: - | G37: x | H37: 2,673,084.80 | I37: 2,673,084.80 | J37: х | K37: х | L37: 2,673,084.80 | M37: х | N37: - | O37: х | P37: х | Q37: х | R37: х | S37: х | T37: х | U37: х | V37: - | W37: х | X37: х | Y37: х | Z37: х | AA37: 2,673,084.80 | AB37: х | AC37: -
A38: 24 | B38: Прочие коммунальные услуги (лимиты) | C38: П223099 | D38: - | E38: - | F38: - | G38: - | H38: - | I38: - | J38: х | K38: х | L38: - | M38: х | N38: - | O38: х | P38: х | Q38: х | R38: х | S38: х | T38: х | U38: х | V38: - | W38: х | X38: х | Y38: х | Z38: х | AA38: - | AB38: х | AC38: -
A39: 25 | B39: Вывоз твердых коммунальных расходов | C39: П223017 | D39: 58,494.70 | E39: x | F39: 58,494.70 | G39: x | H39: 322,785.39 | I39: 322,785.39 | J39: х | K39: х | L39: 322,785.39 | M39: х | N39: 53,403.40 | O39: х | P39: х | Q39: х | R39: х | S39: х | T39: х | U39: х | V39: 53,403.40 | W39: х | X39: х | Y39: х | Z39: х | AA39: 269,381.99 | AB39: х | AC39: -
A40: 26 | B40: Подраздел 2.3 Питание | D40: 4,383,218.80 | E40: x | F40: 4,383,218.80 | G40: x | H40: 3,719,193.54 | I40: 3,719,193.54 | J40: х | K40: х | L40: 422,066.49 | M40: 3,297,127.05 | N40: 3,719,193.54 | O40: х | P40: х | Q40: х | R40: 3,719,193.54 | S40: х | T40: 422,066.49 | U40: 3,297,127.05 | V40: х | W40: х | X40: х | Y40: х | Z40: х | AA40: - | AB40: х | AC40: -
A41: 27 | B41: Организация питания | C41: П226003 | D41: 4,383,218.80 | E41: x | F41: 4,383,218.80 | G41: x | H41: 3,719,193.54 | I41: 3,719,193.54 | J41: х | K41: х | L41: 422,066.49 | M41: 3,297,127.05 | N41: 3,719,193.54 | O41: х | P41: х | Q41: х | R41: 3,719,193.54 | S41: х | T41: 422,066.49 | U41: 3,297,127.05 | V41: х | W41: х | X41: х | Y41: х | Z41: х | AA41: - | AB41: х | AC41: -
A42: 28 | B42: Подраздел 2.4 Налоги | D42: 440,995.00 | E42: x | F42: 409,176.00 | G42: x | H42: 400,901.04 | I42: 400,901.04 | J42: х | K42: х | L42: 400,901.04 | M42: - | N42: 202,157.04 | O42: х | P42: х | Q42: х | R42: - | S42: х | T42: х | U42: - | V42: 202,157.04 | W42: х | X42: х | Y42: х | Z42: х | AA42: 198,744.00 | AB42: х | AC42: -
A43: 29 | B43: 291 "Налоги,пошлины,сборы" | D43: 440,995.00 | E43: x | F43: 409,176.00 | G43: x | H43: 400,901.04 | I43: 400,901.04 | J43: х | K43: х | L43: 400,901.04 | M43: - | N43: 202,157.04 | O43: х | P43: х | Q43: х | R43: - | S43: х | T43: х | U43: - | V43: 202,157.04 | W43: х | X43: х | Y43: х | Z43: х | AA43: 198,744.00 | AB43: х | AC43: -
A44: 30 | B44: Земельный налог | C44: П291001 | D44: 236,495.00 | E44: x | F44: 210,740.00 | G44: x | H44: 202,157.04 | I44: 202,157.04 | J44: х | K44: х | L44: 202,157.04 | M44: х | N44: 202,157.04 | O44: х | P44: х | Q44: х | R44: х | S44: х | T44: х | U44: х | V44: 202,157.04 | W44: х | X44: х | Y44: х | Z44: х | AA44: - | AB44: х | AC44: -
A45: 31 | B45: Прочие налоги, в т.ч.госпошлины | C45: П291005 | D45: - | E45: x | F45: - | G45: x | H45: - | I45: - | J45: х | K45: х | L45: - | M45: х | N45: - | O45: х | P45: х | Q45: х | R45: х | S45: х | T45: х | U45: х | V45: - | W45: х | X45: х | Y45: х | Z45: х | AA45: - | AB45: х | AC45: -
A46: 32 | B46: Налог на имущество | C46: П291014 | D46: 204,500.00 | E46: x | F46: 198,436.00 | G46: x | H46: 198,744.00 | I46: 198,744.00 | J46: х | K46: х | L46: 198,744.00 | M46: х | N46: - | O46: х | P46: х | Q46: х | R46: х | S46: х | T46: х | U46: х | V46: - | W46: х | X46: х | Y46: х | Z46: х | AA46: 198,744.00 | AB46: х | AC46: -
A47: 33 | B47: Налог по упрощенной системе налогооблажения для АУ | C47: П291025 | D47: - | E47: x | F47: - | G47: x | H47: - | I47: - | J47: х | K47: х | L47: х | M47: - | N47: - | O47: х | P47: х | Q47: х | R47: - | S47: х | T47: х | U47: - | V47: х | W47: х | X47: х | Y47: х | Z47: х | AA47: х | AB47: х | AC47: -
A48: 34 | B48: Подраздел 2.5 Прочие расходы | D48: 1,586,972.45 | E48: x | F48: 2,437,172.37 | G48: x | H48: 1,578,004.51 | I48: 964,804.51 | J48: х | K48: х | L48: 961,759.48 | M48: 3,045.03 | N48: 733,658.09 | O48: х | P48: х | Q48: х | R48: 355,302.35 | S48: х | T48: 352,257.32 | U48: 3,045.03 | V48: 378,355.74 | W48: х | X48: х | Y48: х | Z48: х | AA48: 231,146.42 | AB48: 613,200.00 | AC48: -
A49: 35 | B49: 221 "Услуги связи" | D49: 14,655.67 | E49: x | F49: 14,655.67 | G49: x | H49: 14,655.67 | I49: 14,655.67 | J49: х | K49: х | L49: 14,655.67 | M49: х | N49: 14,655.67 | O49: х | P49: х | Q49: х | R49: х | S49: х | T49: х | U49: х | V49: 14,655.67 | W49: х | X49: х | Y49: х | Z49: х | AA49: - | AB49: х | AC49: -
A50: 36 | B50: Услуги телефонной связи (абонентская и повременная плата (ежемесячный платеж) за местные, междугородные, международные переговоры) | C50: П221001 | D50: 14,655.67 | E50: x | F50: 14,655.67 | G50: - | H50: 14,655.67 | I50: 14,655.67 | J50: х | K50: х | L50: 14,655.67 | M50: х | N50: 14,655.67 | O50: х | P50: х | Q50: х | R50: х | S50: х | T50: х | U50: х | V50: 14,655.67 | W50: х | X50: х | Y50: х | Z50: х | AA50: - | AB50: х | AC50: -
A51: 37 | B51: Плата за предоставление доступа (разовый платеж) к телефонной линии связи и Интернет | C51: П221002 | D51: - | E51: x | F51: - | G51: x | H51: - | I51: - | J51: х | K51: х | L51: - | M51: х | N51: - | O51: х | P51: х | Q51: х | R51: х | S51: х | T51: х | U51: х | V51: - | W51: х | X51: х | Y51: х | Z51: х | AA51: - | AB51: х | AC51: -
A52: 38 | B52: Услуги сотовой связи | C52: П221010 | D52: - | E52: x | F52: - | G52: x | H52: - | I52: - | J52: х | K52: х | L52: - | M52: х | N52: - | O52: х | P52: х | Q52: х | R52: х | S52: х | T52: х | U52: х | V52: - | W52: х | X52: х | Y52: х | Z52: х | AA52: - | AB52: х | AC52: -
A53: 39 | B53: Плата за услуги сети Интернет | C53: П221012 | D53: - | E53: x | F53: - | G53: x | H53: - | I53: - | J53: х | K53: х | L53: - | M53: х | N53: - | O53: х | P53: х | Q53: х | R53: х | S53: х | T53: х | U53: х | V53: - | W53: х | X53: х | Y53: х | Z53: х | AA53: - | AB53: х | AC53: -
A54: 40 | B54: Прочие услуги связи | C54: П221099 | D54: - | E54: x | F54: - | G54: x | H54: - | I54: - | J54: х | K54: х | L54: - | M54: х | N54: - | O54: х | P54: х | Q54: х | R54: х | S54: х | T54: х | U54: х | V54: - | W54: х | X54: х | Y54: х | Z54: х | AA54: - | AB54: х | AC54: -
A55: 41 | B55: 224 "Арендная плата за пользоание имуществом" | C55: П224002 | D55: - | E55: x | F55: - | G55: x | H55: - | I55: - | J55: х | K55: х | L55: - | M55: х | N55: - | O55: х | P55: х | Q55: х | R55: х | S55: х | T55: х | U55: х | V55: - | W55: х | X55: х | Y55: х | Z55: х | AA55: - | AB55: х | AC55: -
A56: 42 | B56: 225 "Работы, услуги по содержанию имущества" | D56: 336,035.80 | E56: x | F56: 557,805.92 | G56: x | H56: 330,303.12 | I56: 330,303.12 | J56: х | K56: х | L56: 330,303.12 | M56: - | N56: 138,970.09 | O56: х | P56: х | Q56: х | R56: - | S56: х | T56: - | U56: - | V56: 138,970.09 | W56: х | X56: х | Y56: х | Z56: х | AA56: 191,333.03 | AB56: х | AC56: -
A57: 43 | B57: Содержание в чистоте помещений, зданий, дворов, иного недвижимого имущества ( в том числе озеленение (кроме посадкидеревьев,кустарников)) | C57: П225002 | D57: 65,856.26 | E57: x | F57: 65,856.26 | G57: x | H57: 66,583.50 | I57: 66,583.50 | J57: х | K57: х | L57: 66,583.50 | M57: - | N57: 58,462.33 | O57: х | P57: х | Q57: х | R57: - | S57: х | T57: - | U57: - | V57: 58,462.33 | W57: х | X57: х | Y57: х | Z57: х | AA57: 8,121.17 | AB57: х | AC57: -
A58: 44 | B58: Проведение работ по ремонту и восстановлению эффективности функционирования коммунальных инженерных систем и коммуникаций,…… | C58: П225003 | D58: 27,419.22 | E58: x | F58: 27,419.22 | G58: x | H58: 27,419.22 | I58: 27,419.22 | J58: х | K58: х | L58: 27,419.22 | M58: х | N58: 27,419.22 | O58: х | P58: х | Q58: х | R58: х | S58: х | T58: х | U58: х | V58: 27,419.22 | W58: х | X58: х | Y58: х | Z58: х | AA58: - | AB58: х | AC58: -
A59: 45 | B59: Обеспечение функционирования и поддержка (восстановление) работоспособности объектов нефинансовых активов | C59: П225004 | D59: - | E59: x | F59: - | G59: x | H59: - | I59: - | J59: х | K59: х | L59: - | M59: х | N59: - | O59: х | P59: х | Q59: х | R59: х | S59: х | T59: х | U59: х | V59: - | W59: х | X59: х | Y59: х | Z59: х | AA59: - | AB59: х | AC59: -
A60: 46 | B60: Зарплата внештатных сотрудников | C60: П225005 | D60: - | E60: x | F60: - | G60: x | H60: - | I60: - | J60: х | K60: х | L60: - | M60: х | N60: - | O60: х | P60: х | Q60: х | R60: х | S60: х | T60: х | U60: х | V60: - | W60: х | X60: х | Y60: х | Z60: х | AA60: - | AB60: х | AC60: -
A61: 47 | B61: Текущий ремонт зданий, сооружений, коммунальных инженерных систем и коммуникаций | C61: Н225007 | D61: 35,764.20 | E61: x | F61: 236,999.92 | G61: x | H61: 35,764.20 | I61: 35,764.20 | J61: х | K61: х | L61: 35,764.20 | M61: х | N61: 35,764.20 | O61: х | P61: х | Q61: х | R61: х | S61: х | T61: х | U61: х | V61: 35,764.20 | W61: х | X61: х | Y61: х | Z61: х | AA61: - | AB61: х | AC61: -
A62: 48 | B62: Техническое обслуживание и ремонт аппаратного обеспечения (оргтехника, медицинское оборудование, компьютерная техника и.т.д.), включающее контроль технического состояния | C62: П225010 | D62: 20,554.30 | E62: x | F62: 19,683.00 | G62: x | H62: 17,324.34 | I62: 17,324.34 | J62: х | K62: х | L62: 17,324.34 | M62: х | N62: 17,324.34 | O62: х | P62: х | Q62: х | R62: х | S62: х | T62: х | U62: х | V62: 17,324.34 | W62: х | X62: х | Y62: х | Z62: х | AA62: - | AB62: х | AC62: -
A63: 49 | B63: Расходы на техническое обслуживание и ремонт оборудования (торговое, кухонное, офисное, лифты и т.п.), мебели,ытовой техники, инвентаря (торгового, кухонного, офисного и т.п.) | C63: П225015 | D63: 154,893.34 | E63: x | F63: 176,299.04 | G63: x | H63: 151,663.38 | I63: 151,663.38 | J63: х | K63: х | L63: 151,663.38 | M63: х | N63: - | O63: х | P63: х | Q63: х | R63: х | S63: х | T63: х | U63: х | V63: - | W63: х | X63: х | Y63: х | Z63: х | AA63: 151,663.38 | AB63: х | AC63: -
A64: 50 | B64: Содержание в чистоте имущества, кроме недвижимого | C64: П225016 | D64: - | E64: x | F64: - | G64: x | H64: - | I64: - | J64: х | K64: х | L64: - | M64: - | N64: - | O64: х | P64: х | Q64: х | R64: - | S64: х | T64: - | U64: - | V64: - | W64: х | X64: х | Y64: х | Z64: х | AA64: - | AB64: х | AC64: -
A65: 51 | B65: Техническое обслуживание приборов учета | C65: П225035 | D65: 31,548.48 | E65: x | F65: 31,548.48 | G65: x | H65: 31,548.48 | I65: 31,548.48 | J65: х | K65: х | L65: 31,548.48 | M65: х | N65: - | O65: х | P65: х | Q65: х | R65: х | S65: х | T65: х | U65: х | V65: - | W65: х | X65: х | Y65: х | Z65: х | AA65: 31,548.48 | AB65: х | AC65: -
A66: 52 | B66: Противопожарные мероприятия (огнезащитная обработка чердачных покрытий, замеры сопротивления изоляции, зарядка огнетушителей, опрессовка проводов) | C66: П225036 | D66: - | E66: x | F66: - | G66: x | H66: - | I66: - | J66: х | K66: х | L66: - | M66: х | N66: - | O66: х | P66: х | Q66: х | R66: х | S66: х | T66: х | U66: х | V66: - | W66: х | X66: х | Y66: х | Z66: х | AA66: - | AB66: х | AC66: -
A67: 53 | B67: Расходы по валке и обрезке зеленых насаждений | C67: П225040 | D67: - | E67: x | F67: - | G67: x | H67: - | I67: - | J67: х | K67: х | L67: - | M67: х | N67: - | O67: х | P67: х | Q67: х | R67: х | S67: х | T67: х | U67: х | V67: - | W67: х | X67: х | Y67: х | Z67: х | AA67: - | AB67: х | AC67: -
A68: 54 | B68: Вывоз мусора (ТБО) для учреждений СКС | C68: П225050 | D68: - | E68: x | F68: - | G68: x | H68: - | I68: - | J68: х | K68: х | L68: - | M68: х | N68: - | O68: х | P68: х | Q68: х | R68: х | S68: х | T68: х | U68: х | V68: - | W68: х | X68: х | Y68: х | Z68: х | AA68: - | AB68: х | AC68: -
A69: 55 | B69: Прочие первоочередные расходы по работам, услугам по содержанию имущества | C69: П225098 | D69: - | E69: x | F69: - | G69: x | H69: - | I69: - | J69: х | K69: х | L69: - | M69: х | N69: - | O69: х | P69: х | Q69: х | R69: х | S69: х | T69: х | U69: х | V69: - | W69: х | X69: х | Y69: х | Z69: х | AA69: - | AB69: х | AC69: -
A70: 56 | B70: Прочие расходы по коммунальным услугам, не включенные в вышеуказанные дополнительные коды экономической классификации | C70: Н225099 | D70: - | E70: x | F70: - | G70: x | H70: - | I70: - | J70: х | K70: х | L70: - | M70: х | N70: - | O70: х | P70: х | Q70: х | R70: х | S70: х | T70: х | U70: х | V70: - | W70: х | X70: х | Y70: х | Z70: х | AA70: - | AB70: х | AC70: -
A71: 57 | B71: 226 "Прочие работы, услуги" | D71: 946,866.70 | E71: x | F71: 1,560,066.70 | G71: x | H71: 986,936.89 | I71: 986,936.89 | J71: х | K71: х | L71: 986,936.89 | M71: - | N71: 345,023.40 | O71: х | P71: х | Q71: х | R71: 343,523.40 | S71: х | T71: 343,523.40 | U71: - | V71: 1,500.00 | W71: х | X71: х | Y71: х | Z71: х | AA71: 28,713.49 | AB71: 613,200.00 | AC71: -
A72: 58 | B72: Подписка | C72: П226001 | D72: - | E72: x | F72: - | G72: x | H72: - | I72: - | J72: х | K72: х | L72: - | M72: х | N72: - | O72: х | P72: х | Q72: х | R72: х | S72: х | T72: х | U72: х | V72: - | W72: х | X72: х | Y72: х | Z72: х | AA72: - | AB72: х | AC72: -
A73: 59 | B73: Заработная плата внештатных сотрудников | C73: П226002 | D73: - | E73: x | F73: - | G73: x | H73: - | I73: - | J73: х | K73: х | L73: - | M73: х | N73: - | O73: х | P73: х | Q73: х | R73: х | S73: х | T73: х | U73: х | V73: - | W73: х | X73: х | Y73: х | Z73: х | AA73: - | AB73: х | AC73: -
A74: 60 | B74: Услуги вневедомственной (в том числе пожарной) охраны | C74: П226004 | D74: - | E74: - | F74: - | G74: - | H74: х | I74: х | J74: х | K74: х | L74: х | M74: х | N74: х | O74: х | P74: х | Q74: х | R74: х | S74: х | T74: х | U74: х | V74: х | W74: х | X74: х | Y74: х | Z74: х | AA74: х | AB74: х | AC74: х
A75: 61 | B75: За участие в семинарах, совещаниях, конференциях, курсах повышения квалификации, проф. обучение, за образовательные услуги, … | C75: П226052 | D75: 1,500.00 | E75: x | F75: 3,000.00 | G75: x | H75: 1,500.00 | I75: 1,500.00 | J75: х | K75: х | L75: 1,500.00 | M75: х | N75: 1,500.00 | O75: х | P75: х | Q75: х | R75: х | S75: х | T75: х | U75: х | V75: 1,500.00 | W75: х | X75: х | Y75: х | Z75: х | AA75: - | AB75: х | AC75: -
A76: 62 | B76: Приобретение неисключительных (пользовательских) прав на программное обеспечение | C76: П226010 | D76: - | E76: x | F76: - | G76: x | H76: - | I76: - | J76: х | K76: х | L76: - | M76: х | N76: - | O76: х | P76: х | Q76: х | R76: х | S76: х | T76: х | U76: х | V76: - | W76: х | X76: х | Y76: х | Z76: х | AA76: - | AB76: х | AC76: -
A77: 63 | B77: Приобретение и обновление справочно-информационных баз данных | C77: П226013 | D77: - | E77: x | F77: - | G77: x | H77: - | I77: - | J77: х | K77: х | L77: - | M77: х | N77: - | O77: х | P77: х | Q77: х | R77: х | S77: х | T77: х | U77: х | V77: - | W77: х | X77: х | Y77: х | Z77: х | AA77: - | AB77: х | AC77: -
A78: 64 | B78: Типографские работы,услуги | C78: П226022 | D78: - | E78: x | F78: - | G78: x | H78: - | I78: - | J78: х | K78: х | L78: - | M78: х | N78: - | O78: х | P78: х | Q78: х | R78: х | S78: х | T78: х | U78: х | V78: - | W78: х | X78: х | Y78: х | Z78: х | AA78: - | AB78: х | AC78: -
A79: 65 | B79: Возмещение расходов и оплата по договорам гражданско-правового характера услуг по проживанию в жилых помещениях (найм жилого помещения) при служебных командировках | C79: П226024 | D79: - | E79: x | F79: - | G79: x | H79: - | I79: - | J79: х | K79: х | L79: - | M79: х | N79: - | O79: х | P79: х | Q79: х | R79: х | S79: х | T79: х | U79: х | V79: - | W79: х | X79: х | Y79: х | Z79: х | AA79: - | AB79: х | AC79: -
A80: 66 | B80: Услуги адвокатов, нотариусов, переводчиков, экспертов, инкассаторов | C80: П226025 | D80: - | E80: x | F80: - | G80: x | H80: - | I80: - | J80: х | K80: х | L80: - | M80: х | N80: - | O80: х | P80: х | Q80: х | R80: х | S80: х | T80: х | U80: х | V80: - | W80: х | X80: х | Y80: х | Z80: х | AA80: - | AB80: х | AC80: -
A81: 67 | B81: Проведение инвентаризации, паспортизации основных средств | C81: П226027 | D81: - | E81: x | F81: - | G81: x | H81: - | I81: - | J81: х | K81: х | L81: - | M81: х | N81: - | O81: х | P81: х | Q81: х | R81: х | S81: х | T81: х | U81: х | V81: - | W81: х | X81: х | Y81: х | Z81: х | AA81: - | AB81: х | AC81: -
A82: 68 | B82: Услуги по предоставлению во временное пользование мягкого инвентаря и специальной одежды | C82: П226037 | D82: 341,898.90 | E82: x | F82: 341,898.90 | G82: x | H82: 343,523.40 | I82: 343,523.40 | J82: х | K82: х | L82: 343,523.40 | M82: - | N82: 343,523.40 | O82: х | P82: х | Q82: х | R82: 343,523.40 | S82: х | T82: 343,523.40 | U82: - | V82: х | W82: х | X82: х | Y82: х | Z82: х | AA82: - | AB82: х | AC82: -
A83: 69 | B83: Возмещение работникам (сотрудникам) расходов по проезду при служебных командировках | C83: П226042 | D83: - | E83: x | F83: - | G83: x | H83: - | I83: - | J83: х | K83: х | L83: - | M83: х | N83: - | O83: х | P83: х | Q83: х | R83: х | S83: х | T83: х | U83: х | V83: - | W83: х | X83: х | Y83: х | Z83: х | AA83: - | AB83: х | AC83: -
A84: 70 | B84: Услуги охраны образовательных организаций частными охранными предприятиями | C84: П226050 | D84: 569,400.00 | E84: x | F84: 1,182,600.00 | G84: x | H84: 613,200.00 | I84: 613,200.00 | J84: х | K84: х | L84: 613,200.00 | M84: х | N84: - | O84: х | P84: х | Q84: х | R84: х | S84: х | T84: х | U84: х | V84: - | W84: х | X84: х | Y84: х | Z84: х | AA84: - | AB84: 613,200.00 | AC84: -
A85: 71 | B85: Прочие первоочередные расходы по прочим работам, услугам | C85: П226098 | D85: 34,067.80 | E85: x | F85: 32,567.80 | G85: x | H85: 28,713.49 | I85: 28,713.49 | J85: х | K85: х | L85: 28,713.49 | M85: х | N85: - | O85: х | P85: х | Q85: х | R85: х | S85: х | T85: х | U85: х | V85: - | W85: х | X85: х | Y85: х | Z85: х | AA85: 28,713.49 | AB85: х | AC85: -
A86: 72 | B86: Прочие расходы по прочим работам, услугам, не включенные в вышеуказанные дополнительные коды экономической классификации | C86: Н226099 | D86: - | E86: x | F86: - | G86: x | H86: - | I86: - | J86: х | K86: х | L86: - | M86: х | N86: - | O86: х | P86: х | Q86: х | R86: х | S86: х | T86: х | U86: х | V86: - | W86: х | X86: х | Y86: х | Z86: х | AA86: - | AB86: х | AC86: -
A87: 73 | B87: 227 "Страхование" | C87: П227001 | D87: - | E87: x | F87: - | G87: x | H87: - | I87: - | J87: х | K87: х | L87: - | M87: х | N87: - | O87: х | P87: х | Q87: х | R87: х | S87: х | T87: х | U87: х | V87: - | W87: х | X87: х | Y87: х | Z87: х | AA87: - | AB87: х | AC87: -
A88: 74 | B88: 310 "Увеличение стоимости основных средств" | D88: 89,242.70 | E88: x | F88: 90,114.00 | G88: x | H88: 75,218.88 | I88: 75,218.88 | J88: х | K88: х | L88: 75,218.88 | M88: - | N88: 75,218.86 | O88: х | P88: х | Q88: х | R88: - | S88: х | T88: - | U88: - | V88: 75,218.86 | W88: х | X88: х | Y88: х | Z88: х | AA88: 0.02 | AB88: х | AC88: -
A89: 75 | B89: Приобретение огнетушителей | C89: П310001 | D89: - | E89: x | F89: - | G89: x | H89: - | I89: - | J89: х | K89: х | L89: - | M89: х | N89: - | O89: х | P89: х | Q89: х | R89: х | S89: х | T89: х | U89: х | V89: - | W89: х | X89: х | Y89: х | Z89: х | AA89: - | AB89: х | AC89: -
A90: 76 | B90: Приобретение автоматизированных рабочих мест, транспортно-коммуникационного оборудования, серверного, периферийного и т.п. оборудования | C90: Н310004 | D90: 44,621.35 | E90: x | F90: 48,970.00 | G90: x | H90: - | I90: - | J90: х | K90: х | L90: - | M90: х | N90: - | O90: х | P90: х | Q90: х | R90: х | S90: х | T90: х | U90: х | V90: - | W90: х | X90: х | Y90: х | Z90: х | AA90: - | AB90: х | AC90: -
A91: 77 | B91: Прочие первоочередные расходы по увеличению стоимости основных средств | C91: П310098 | D91: - | E91: x | F91: - | G91: x | H91: - | I91: - | J91: х | K91: х | L91: - | M91: - | N91: - | O91: х | P91: х | Q91: х | R91: - | S91: х | T91: - | U91: - | V91: - | W91: х | X91: х | Y91: х | Z91: х | AA91: - | AB91: х | AC91: -
A92: 78 | B92: Прочие расходы по увеличению стоимости основных средств, не включенные в вышеуказанные дополнительные коды экономической классификации | C92: Н310099 | D92: 44,621.35 | E92: x | F92: 41,144.00 | G92: x | H92: 75,218.88 | I92: 75,218.88 | J92: х | K92: х | L92: 75,218.88 | M92: - | N92: 75,218.86 | O92: х | P92: х | Q92: х | R92: - | S92: х | T92: - | U92: - | V92: 75,218.86 | W92: х | X92: х | Y92: х | Z92: х | AA92: 0.02 | AB92: х | AC92: -
A93: 79 | B93: 341 "Увеличение стоимости лекарственных препаратов, применяемых в мед.целях" | D93: 9,304.65 | E93: x | F93: 9,304.65 | G93: x | H93: 8,733.92 | I93: 8,733.92 | J93: х | K93: х | L93: 8,733.92 | M93: - | N93: 8,733.92 | O93: х | P93: х | Q93: х | R93: 8,733.92 | S93: х | T93: 8,733.92 | U93: - | V93: х | W93: х | X93: х | Y93: х | Z93: х | AA93: - | AB93: х | AC93: -
A94: 80 | B94: Закупка медикаментов, перевязочных средств (расходных материалов) | C94: П341006 | D94: 9,304.65 | E94: x | F94: 9,304.65 | G94: x | H94: 8,733.92 | I94: 8,733.92 | J94: х | K94: х | L94: 8,733.92 | M94: - | N94: 8,733.92 | O94: х | P94: х | Q94: х | R94: 8,733.92 | S94: х | T94: 8,733.92 | U94: - | V94: х | W94: х | X94: х | Y94: х | Z94: х | AA94: - | AB94: х | AC94: -
A95: 81 | B95: 344 "Увеличение стоимости строительных материалов" | D95: 34,483.72 | E95: x | F95: 48,842.22 | G95: x | H95: 29,390.77 | I95: 29,390.77 | J95: х | K95: х | L95: 29,390.77 | M95: х | N95: 29,390.77 | O95: х | P95: х | Q95: х | R95: - | S95: х | T95: - | U95: х | V95: 29,390.77 | W95: х | X95: х | Y95: х | Z95: х | AA95: - | AB95: х | AC95: -
A96: 82 | B96: Первоочередные расходы по увеличению стоимости строительных материалов | C96: П344098 | D96: - | E96: x | F96: - | G96: x | H96: - | I96: - | J96: х | K96: х | L96: - | M96: х | N96: - | O96: х | P96: х | Q96: х | R96: - | S96: х | T96: - | U96: х | V96: - | W96: х | X96: х | Y96: х | Z96: х | AA96: - | AB96: х | AC96: -
A97: 83 | B97: Прочие расходы по увеличению стоимости строительных материалов | C97: Н344099 | D97: 34,483.72 | E97: x | F97: 48,842.22 | G97: x | H97: 29,390.77 | I97: 29,390.77 | J97: х | K97: х | L97: 29,390.77 | M97: х | N97: 29,390.77 | O97: х | P97: х | Q97: х | R97: - | S97: х | T97: - | U97: х | V97: 29,390.77 | W97: х | X97: х | Y97: х | Z97: х | AA97: - | AB97: х | AC97: -
A98: 84 | B98: 345 "Увеличение стоимости мякого инвентаря" | D98: 18,054.40 | E98: x | F98: 18,054.40 | G98: x | H98: 16,294.16 | I98: 16,294.16 | J98: х | K98: х | L98: 16,294.16 | M98: - | N98: 16,294.16 | O98: х | P98: х | Q98: х | R98: - | S98: х | T98: - | U98: - | V98: 16,294.16 | W98: х | X98: х | Y98: х | Z98: х | AA98: - | AB98: х | AC98: -
A99: 85 | B99: Закупка мягкого инвентаря, одежды, обмундирования | C99: П345002 | D99: 18,054.40 | E99: x | F99: 18,054.40 | G99: x | H99: 16,294.16 | I99: 16,294.16 | J99: х | K99: х | L99: 16,294.16 | M99: - | N99: 16,294.16 | O99: х | P99: х | Q99: х | R99: - | S99: х | T99: - | U99: - | V99: 16,294.16 | W99: х | X99: х | Y99: х | Z99: х | AA99: - | AB99: х | AC99: -
A100: 86 | B100: 346 "Увеличение стоимости прочих материальных запасов однократного применения | D100: 138,328.81 | E100: x | F100: 138,328.81 | G100: x | H100: 116,471.10 | I100: 116,471.10 | J100: х | K100: х | L100: 113,426.07 | M100: 3,045.03 | N100: 105,371.22 | O100: х | P100: х | Q100: х | R100: 3,045.03 | S100: х | T100: - | U100: 3,045.03 | V100: 102,326.19 | W100: х | X100: х | Y100: х | Z100: х | AA100: 11,099.88 | AB100: х | AC100: -
A101: 87 | B101: Закупка запчастей к оборудованию | C101: П346003 | D101: - | E101: x | F101: - | G101: x | H101: - | I101: - | J101: х | K101: х | L101: - | M101: х | N101: - | O101: х | P101: х | Q101: х | R101: х | S101: х | T101: х | U101: х | V101: - | W101: х | X101: х | Y101: х | Z101: х | AA101: - | AB101: х | AC101: -
A102: 88 | B102: Приобретение канцелярских, хозяйственных товаров,расходных материалов | C102: П346017 | D102: 68,986.60 | E102: x | F102: 68,986.60 | G102: x | H102: 58,781.54 | I102: 58,781.54 | J102: х | K102: х | L102: 58,781.54 | M102: - | N102: 58,781.54 | O102: х | P102: х | Q102: х | R102: - | S102: х | T102: - | U102: - | V102: 58,781.54 | W102: х | X102: х | Y102: х | Z102: х | AA102: - | AB102: х | AC102: -
A103: 89 | B103: Прочие первоочередные расходы по увеличению стоимости прочих материальных запасов | C103: П346098 | D103: 65,729.47 | E103: x | F103: 58,244.47 | G103: x | H103: 54,644.53 | I103: 54,644.53 | J103: х | K103: х | L103: 54,644.53 | M103: - | N103: 43,544.65 | O103: х | P103: х | Q103: х | R103: - | S103: х | T103: - | U103: - | V103: 43,544.65 | W103: х | X103: х | Y103: х | Z103: х | AA103: 11,099.88 | AB103: х | AC103: -
A104: 90 | B104: Прочие расходы по увеличению ст-ти материальных запасов (Ассигнования) | C104: Н346099 | D104: 3,612.74 | E104: x | F104: 11,097.74 | G104: x | H104: 3,045.03 | I104: 3,045.03 | J104: х | K104: х | L104: - | M104: 3,045.03 | N104: 3,045.03 | O104: х | P104: х | Q104: х | R104: 3,045.03 | S104: х | T104: - | U104: 3,045.03 | V104: - | W104: х | X104: х | Y104: х | Z104: х | AA104: - | AB104: х | AC104: -
A105: 91 | B105: Прочие расходы по увеличению ст-ти материальных запасов (Лимиты) | C105: Н346099 | D105: - | E105: - | F105: - | G105: - | H105: 3,045.03 | I105: 3,045.03 | J105: х | K105: х | L105: - | M105: 3,045.03 | N105: 3,045.03 | O105: х | P105: х | Q105: х | R105: 3,045.03 | S105: х | T105: - | U105: 3,045.03 | V105: - | W105: х | X105: х | Y105: х | Z105: х | AA105: - | AB105: х | AC105: -
A106: 92 | B106: Итого учтено ассигнований | D106: 36,552,931.45 | E106: x | F106: 36,788,607.30 | G106: x | H106: 40,580,679.26 | I106: 40,580,679.26 | J106: 10,575,968.00 | K106: 7,775,095.81 | L106: 18,745,770.69 | M106: 3,483,844.76 | N106: 28,053,405.16 | O106: 10,575,968.00 | P106: 9,937,409.00 | Q106: 638,559.00 | R106: 15,231,180.98 | S106: 4,613,373.98 | T106: 7,133,962.24 | U106: 3,483,844.76 | V106: 2,246,256.18 | W106: 8,362,568.89 | X106: 3,161,721.83 | Y106: 5,200,847.06 | Z106: - | AA106: 3,551,505.21 | AB106: 613,200.00 | AC106: -
A107: 93 | B107: Итого учтено лимитов | D107: 35,059,298.71 | E107: x | F107: 36,777,509.56 | G107: x | H107: 37,907,594.46 | I107: 37,907,594.46 | J107: 10,575,968.00 | K107: 7,775,095.81 | L107: 16,072,685.89 | M107: 3,483,844.76 | N107: 28,053,405.16 | O107: 10,575,968.00 | P107: 9,937,409.00 | Q107: 638,559.00 | R107: 15,231,180.98 | S107: 4,613,373.98 | T107: 7,133,962.24 | U107: 3,483,844.76 | V107: 2,246,256.18 | W107: 8,362,568.89 | X107: 3,161,721.83 | Y107: 5,200,847.06 | Z107: - | AA107: 878,420.41 | AB107: 613,200.00 | AC107: -
A108: 94 | B108: Объем недоведенных лимитов | D108: 1,493,632.74 | E108: x | F108: 11,097.74 | G108: x | H108: 2,673,084.80 | I108: 2,673,084.80 | J108: - | K108: - | L108: 2,673,084.80 | M108: - | N108: - | O108: - | P108: - | Q108: - | R108: - | S108: - | T108: - | U108: - | V108: - | W108: - | X108: - | Y108: - | Z108: - | AA108: 2,673,084.80 | AB108: - | AC108: -

Sheet Расшифровка к бюджету
A1: Бюджет на 2025 год по дошкольным образовательным учреждениям
A2: Наименование показателя | B2: КОСГУ | C2: Доп Эк | D2: дс 289
A4: РАСХОДЫ
A5: Начисления на выплаты по оплате труда, всего: | B5: 210 | D5: =D6+D13 -> 30,095,221.98
A6: Заработная плата, всего: | B6: 211 | D6: =SUM(D7:D12) -> 23,114,609.82
A7: зарплата пед.персонала (НФЗ субвенция) | B7: 302 | C7: П211004 | D7: 7,632,418.58
A8: пед.работники (ДопФк 13597) (субвенция ) | B8: 302 | C8: П211004 | D8: 490,444.70
A9: зарплата пед.персонала (субсидия) | B9: 303 | C9: П211004 | D9: 49,131.64
A10: заработная плата АУП, УВП и обслужив.персонала (НСВ)(мун.бюджет) | C10: П211004 | D10: =2428357.79-D9 -> 2,379,226.15
A11: заработная плата АУП, УВП и обслужив.персонала (НСВ)(мун.бюджет) | B11: 304 | C11: П211005 | D11: 12,422,319.11
A12: заработная плата АУП, УВП и обслужив.персонала(родплата) (НСВ) | B12: 303 | C12: П211005 | D12: 141,069.64
A13: Начисления на выплаты по оплате труда, всего: | B13: 213 | D13: =SUM(D14:D19) -> 6,980,612.16
A14: начисление на зар.пл. пед.перс. (НФЗ субвенция) | B14: 302 | C14: П213004 | D14: 2,304,990.42
A15: пед.работники (ДопФк 13597) (субвенция) | B15: 302 | C15: П213004 | D15: 148,114.30
A16: начисление на зар.пл. пед.перс. (субсидия) | B16: 302 | C16: П213004 | D16: 14,837.75
A17: начисление на зар.пл.АУП, УВП и обслужив.персонала (НСВ)(мун.бюджет) | B17: 305 | C17: П213004 | D17: =733364.04-D16 -> 718,526.29
A18: начисление на зар.пл.АУП, УВП и обслужив.персонала (НСВ)(мун.бюджет) | B18: 304 | C18: П213005 | D18: 3,751,540.36
A19: начисление на зар.пл.АУП, УВП и обслужив.персонала (НСВ) (родплата) | B19: 303 | C19: П213005 | D19: 42,603.04
A20: Оплата работ, услуг: | B20: 220 | D20: =D21+D26+D30+D39+D43+D64 -> 9,225,247.41
A21: Услуги связи, всего: | B21: 221 | D21: =SUM(D22:D25) -> 14,655.67
A22: Услуги городской телефонной связи (местные соединения) | B22: 304 | C22: П221001 | D22: 14,655.67
A23: Услуги сотовой связи | C23: П221002
A24: Услуги сети "Интернет" | C24: П221012
A25: Прочие | C25: П221099
A26: Транспортные услуги, всего: | B26: 222 | D26: =SUM(D27:D29) -> 0.00
A27: Все виды расходов по транспортному обслуживанию (найм)
A28: Командировочные расходы (проезд) | C28: 222,010
A29: Прочие
A30: Коммунальные услуги, всего: | B30: 223 | D30: =SUM(D31:D38) -> 4,787,358.19
A31: Оплата потребления электрической энергии (разница ассигнования) | B31: 308 | C31: П223001
A32: Оплата потребления электрической энергии (лимиты) | B32: 304 | C32: П223001 | D32: 631,513.00
A33: Оплата отопления и технологических нужд | B33: 304 | C33: П223002 | D33: 982,450.00
A34: Оплата потребления газа | B34: 304 | C34: П223003 | D34: 0.00
A35: Оплата водоснабжения помещений | B35: 304 | C35: П223004 | D35: 177,525.00
A36: Оплата договоров на вывоз твердых коммунальных отходов с региональным оператором | B36: 304 | C36: П223017 | D36: =53403.4 -> 53,403.40
A37: Оплата договоров на вывоз твердых коммунальных отходов с региональным оператором (резерв ассигн.и лимиты) | B37: 308 | C37: П223017 | D37: =310486-1440.73-39663.28 -> 269,381.99
A38: Прочие расходы по коммунальным услугам, не включенные в вышеуказанные дополнительные коды экономической классификации (только ассигнования) | C38: П223099 | D38: 2,673,084.80
A39: Арендная плата за пользование имуществом, всего: | B39: 224 | D39: =SUM(D40:D42) -> 0.00
A40: Аренда помещения
A41: Аренда транспорта
A42: Прочие
A43: Работы, услуги по содержанию имущества, всего: | B43: 225 | D43: =SUM(D44:D63) -> 330,303.12
A44: Сброс снега с крыши | B44: 304 | C44: П225002 | D44: =19131+31513.5 -> 50,644.50
A45: Дезинфекция, дезинсекция и дератизация | B45: 308 | C45: П225002 | D45: 8,121.17
A46: Обработка участков от комаров и клещей (аккарицидная обработка) | B46: 304 | C46: П225002 | D46: 7,817.83
A47: Проведение работ по ремонту и восстановлению эффективности функционирования коммунальных инженерных систем и коммуникаций, (опрессовка системы отопления) | B47: 304 | C47: П225003 | D47: 27,419.22
A48: З/пл внешт.сотр.(сброс снега с крыши) | B48: 304 | C48: П225005
A49: Текущий ремонт зданий (плановые кровельные и общестроительные работы, плановый ремонт коммунальных инженерных систем и коммуникаций, в том числе газового и теплового хозяйства, сетей водоснабжения, водоотведения и электроснабжения) | B49: 304 | C49: Н225007 | D49: 35,764.20
A50: Противопожарные мероприятия (замеры сопротивления изоляции) | B50: 304 | C50: П225036
A51: Противопожарные мероприятия (огнезащитная обработка чердачных перекрытий) | B51: 304 | C51: П225036
A52: Техническое обслуживание и ремонт аппаратного обеспечения (оргтехника, медицинское оборудование, компьют.техника и т.д.), включающее контроль тех.состояния | C52: П225010 | D52: 17,324.34
A53: Расходы на техническое обслуживание и ремонт оборудования (торговое, кухонное, офисное, лифты и т.п.), мебели, бытовой техники, инвентаря (торгового, кухонного, офисного и т.п.) | B53: 304 | C53: П225015 | D53: 17,324.34
A54: Расходы на техническое обслуживание и ремонт малых грузовых лифтов | B54: 304 | C54: П225015
A55: Расходы на техническое обслуживание вентиляционной системы | B55: 304 | C55: П225015
A56: Расходы на техническое обслуживание узлов пог.регулир.и теплообменников | B56: 304 | C56: П225015 | D56: =23585.52*2+43584*2 -> 134,339.04
A57: Прачечные услуги | B57: 304 | C57: П225016
A58: Экспертиза огнезащитной обработки | C58: П225098
A59: Техническое обслуживание приборов учета | B59: 304 | C59: П225035 | D59: =15774.24*2 -> 31,548.48
A60: Благоустройство территории (общестроительные работы вне здания, обрезка деревьев) | B60: 304 | C60: П225040
A61: Потребность на замену счётчиков и трансформаторов | C61: П225098
A62: Техническое освидетельствование лифтов | C62: П225098
A63: Эксплуатационные расходы | C63: П225098
A64: Прочие работы, услуги, всего: | B64: 226 | D64: =SUM(D65:D77) -> 4,092,930.43
A65: Подписка | B65: 302 | C65: П226001
A66: Питание бюджет | B66: 303 | C66: П226003 | D66: 422,066.49
A67: Питание родплата | B67: 303 | C67: П226003 | D67: 3,297,127.05
A68: Обучение санит.гигиен.обуч.руковод. | B68: 304 | C68: П226052 | D68: 1,500.00
A69: Прочие обучения (охрана труда -1500руб.-1чел.) | B69: 304 | C69: П226052
A70: Обучение контрактным управляющим (5500-1чел) | C70: П226052
A71: Прочие обучения (программа электроустановок -4000,00) | B71: 304 | C71: П226052
A72: Разработка схем территориального планирования, планировка территорий | B72: 304 | C72: Н226019 (в ОФО 226098)
A73: Проведение инвентаризации, паспортизации основных средств | B73: 304 | C73: П226027
A74: Услуги по предоставлению во временное пользование мягкого инвентаря и спец.одежды | B74: 303 | C74: П226037 | D74: 343,523.40
A75: Прочие услуги (оценка профрисков, СОУТ, лаборат.исслед) | B75: 304 | C75: П226098 | D75: 28,713.49
A76: Прочие услуги (потребность на обслуживание автоматизированного учёта электроэнергии) | B76: 304 | C76: П226098
A77: Услуги по страхованию (за исключением ОСАГО, КАСКО) | C77: П227001
A78: Прочие расходы, всего: | B78: 290 | D78: =SUM(D79:D83) -> 400,901.04
A79: Земельный налог | B79: 304 | C79: П291001 | D79: 202,157.04
A80: Налог на имущество | B80: 304 | C80: П291014 | D80: 198,744.00
A81: Госпошлина на переоформеление лицензии (мед.деятельность) | C81: П291005
A82: Госпошлина на оформеление аккредитации | C82: П290005
A83: Налог по упрощенной системе налогообложения для автономных учреждений (родплата) | C83: П291025
A84: Поступление нефинансовых активов, всего: | B84: 300 | D84: =D85+D89 -> 246,108.83
A85: Увеличение стоимости основных средств, всего: | B85: 310 | D85: =SUM(D86:D88) -> 75,218.88
A86: Приобретение автоматизированных рабочих мест, транспортно-коммуникационного оборудования, серверного, периферийного и т.п.оборудования | C86: Н310004
A87: Прочие расходы по увеличению стоимости основных средств (субвенция) | C87: Н310099
A88: Прочие расходы по увеличению стоимости основных средств | C88: Н310099 | D88: 75,218.88
A89: Увеличение стоимости материальных запасов, всего: | B89: 340 | D89: =SUM(D90:D100) -> 170,889.95
A90: Закупка медикаментов, перевязочных средств (расходных материалов) | B90: 303 | C90: П341006 | D90: 8,733.92
A91: Прочие расходы по увеличению стоимости строит.материалов | B91: 304 | C91: П344099 | D91: 29,390.77
A92: Закупка мягкого инвентаря, одежды, обмундирования | B92: 304 | C92: П345002 | D92: 16,294.16
A93: Закупка материалов, используемых в процессе обучения (субвенция) | B93: 302 | C93: П346004
A94: Приобретение канцелярских и хозяственных товаров | C94: П346017 | D94: 58,781.54
A95: Прочие расходы по увеличение стоимости мат.запасов | B95: 304 | C95: П346098 | D95: 29,390.77
A96: Прочие расходы по увеличение стоимости мат.запасов (род.плата) | B96: 304 | C96: П346098
A97: Прочие расходы по увеличение стоимости мат.запасов (замена песка) | B97: 304 | C97: П346098 | D97: 19,008.00
A98: Прочие расходы по увеличение стоимости мат.запасов (песко-соляная смесь) | B98: 304 | C98: П346098 | D98: 6,245.76
A99: Прочие расходы по увеличение стоимости мат.запасов (род.плата) | B99: 304 | C99: Н346099 | D99: 3,045.03
A100: Прочие расходы по увеличение стоимости мат.запасов | B100: 304 | C100: Н346099
A101: ИТОГО РАСХОДОВ: | D101: =D5+D20+D78+D84 -> 39,967,479.26
A102: в т.ч.субвенция | D102: =D7+D14+D8+D15+D87 -> 10,575,968.00
A103: в т.ч.субсидия | D103: =D9+D16 -> 63,969.39
A104: в т.ч.мун.бюджет | D104: =D21+D30+D43+D65+D66+D68+D69+D70+D71+D72+D73+D74+D75+D76+D77+D79+D80+D81+D82+D86+D88+D90+D91+D92+D94+D95+D97+D98+D100+D11+D18+D10+D17 -> 25,843,697.11
A105: в т.ч.родплата | D105: =D12+D19+D83+D96+D99+D67 -> 3,483,844.76
A106: Прочие расходы мун.бюджет | D106: =D21+D43+D64-D66-D67+D81+D82+D86+D88+D91+D92+D94+D95+D97+D98+D100 -> 953,025.56
D107: контр.проч.мун.
D108: субвенция
D109: субсидия
D110: мун.бюджет
D111: родплата
A113: ассигнования (разница между лимитами 340099)
A114: недостаток ФОТ в расч.потреность
A115: Начисления на выплаты по оплате труда, всего: | B115: 210 | D115: =D116+D118 -> 0.00
A116: Заработная плата, всего: | B116: 211 | D116: =SUM(D117:D117) -> 0.00
A117: недостаток ФОТ | B117: 302 | C117: П211004
A118: Начисления на выплаты по оплате труда, всего: | B118: 213 | D118: =SUM(D119:D119) -> 0.00
A119: недостаток ФОТ | B119: 302 | C119: П213004
A121: ОХРАНА | C121: П226050 | D121: 613,200.00
A123: ВСЕГО | D123: =D101+D115+D121 -> 40,580,679.26
